bitfinex-derivatives/quotes_ETHF0:USTF0_20250106
["timestamp","ask_amount","ask_price","bid_price","bid_amount"]
[1736129872507,0.2457,3664.0,3663.4,3.2078]
[1736129872712,3.77945235,3664.6,3663.4,3.2078]
[1736129872713,0.24571,3663.8,3663.4,3.2078]
[1736129872918,0.2457,3663.9,3663.4,3.2078]
[1736129873315,0.24568,3664.2,3663.8,3.2078]
[1736129873613,3.77945235,3664.6,3663.8,3.2078]
[1736129874006,3.77945235,3664.6,3662.9,2.57745235]
[1736129874007,3.77945235,3664.6,3663.3,3.2078]
[1736129874211,0.2457,3664.0,3663.7,3.2078]
[1736129874407,3.77945235,3664.6,3663.7,3.2078]
[1736129874809,0.24569,3664.0,3663.7,3.2078]
[1736129875215,0.24569,3664.1,3663.7,3.2078]
[1736129875423,0.2457,3664.0,3663.7,3.2078]
[1736129875717,0.2457,3663.9,3663.7,3.2078]
[1736129876023,0.24571,3663.8,3663.7,3.2078]
[1736129876216,0.24571,3663.8,3662.5,2.57745235]
[1736129876217,2.57745235,3664.2,3663.3,3.2078]
[1736129876417,0.24571,3663.8,3663.3,3.2078]
[1736129876924,4.71267852,3664.2,3663.3,3.2078]
[1736129877321,0.24573,3663.6,3663.3,3.2078]
[1736129877822,4.71267852,3664.2,3663.3,3.2078]
[1736129878019,0.2457,3664.0,3663.3,3.45354]
[1736129878321,0.24571,3663.8,3663.3,3.2078]
[1736129879015,0.2457,3664.0,3663.3,3.45354]
[1736129879218,2.13522617,3664.1,3663.5,0.24572]
[1736129879526,2.38091617,3664.1,3663.5,0.24572]
[1736129879722,2.57745235,3664.2,3663.3,3.2078]
[1736129879925,2.57745235,3664.2,3663.3,3.45354]
[1736129880123,0.24569,3664.1,3663.5,0.24573]
[1736129880315,2.57745235,3664.2,3663.3,3.2078]
[1736129880716,5.34302617,3664.3,3663.3,3.2078]
[1736129881029,5.34302617,3664.3,3663.5,0.24572]
[1736129881030,0.24569,3664.2,3663.5,0.24572]
[1736129881319,0.24569,3664.2,3662.9,2.57745235]
[1736129881320,5.34302617,3664.3,3663.7,3.2078]
[1736129881517,2.13522617,3664.3,3663.8,0.24571]
[1736129881823,2.13522617,3664.3,3664.2,0.24568]
[1736129882517,2.13522617,3664.3,3664.2,5.24568]
[1736129882712,2.38096811,3664.7,3664.2,0.24567]
[1736129882911,2.13531811,3664.7,3664.6,3.2078]
[1736129883116,0.70121811,3664.7,3664.6,3.2078]
[1736129883318,0.70121811,3664.7,3664.6,3.45345]
[1736129884223,5.99353837,3665.8,3664.6,3.2078]
[1736129884425,0.24561,3665.3,3665.2,3.2078]
[1736129885019,0.2456,3665.5,3665.2,3.2078]
[1736129885326,0.24561,3665.3,3665.2,3.2078]
[1736129885523,0.2456,3665.4,3664.7,3.2078]
[1736129885823,0.24563,3664.9,3664.7,3.2078]
[1736129886218,2.57745235,3665.5,3664.7,3.2078]
[1736129886413,0.24564,3664.8,3664.7,3.2078]
[1736129886619,3.77945235,3665.1,3664.2,3.2078]
[1736129886821,0.24566,3664.5,3664.2,3.2078]
[1736129887318,0.24567,3664.3,3664.2,3.2078]
[1736129887628,2.57745235,3664.7,3664.2,3.2078]
[1736129887825,0.24565,3664.8,3664.2,3.45348]
[1736129888124,0.24564,3664.8,3664.2,3.2078]
[1736129888325,0.24566,3664.6,3664.2,3.2078]
[1736129888527,0.24567,3664.3,3664.2,3.2078]
[1736129889417,1.7539,3664.8,3664.2,3.2078]
[1736129889613,1.7402,3664.9,3664.2,3.2078]
[1736129889819,4.41895837,3665.1,3664.6,3.45345]
[1736129890019,4.41895837,3665.1,3665.0,3.2078]
[1736129890422,4.17333837,3665.1,3665.0,3.2078]
[1736129890613,0.24562,3665.2,3665.0,3.2078]
[1736129890813,0.2456,3665.5,3665.0,3.2078]
[1736129891018,0.24561,3665.3,3665.0,3.2078]
[1736129891828,5.309,3665.6,3665.0,3.2078]
[1736129892127,0.2456,3665.4,3665.0,3.2078]
[1736129892327,5.309,3665.6,3665.0,3.2078]
[1736129892622,2.57745235,3665.5,3665.0,3.2078]
[1736129892921,2.57745235,3665.5,3664.6,3.2078]
[1736129893224,0.24562,3665.1,3664.6,3.2078]
[1736129893427,2.57745235,3665.5,3664.6,3.2078]
[1736129893630,0.24563,3665.0,3664.6,3.2078]
[1736129894123,2.57745235,3665.5,3664.6,3.2078]
[1736129894519,2.57745235,3665.1,3664.6,3.2078]
[1736129894718,0.24568,3664.4,3663.9,3.2078]
[1736129894920,0.2457,3664.0,3663.9,3.2078]
[1736129895623,0.24569,3664.2,3663.5,3.2078]
[1736129895923,0.24573,3663.6,3663.5,3.2078]
[1736129896722,2.57745235,3663.9,3663.5,3.2078]
[1736129896921,0.24572,3663.7,3663.5,3.2078]
[1736129897328,0.24572,3663.6,3663.5,3.2078]
[1736129897528,0.24571,3663.8,3663.5,3.2078]
[1736129897722,0.24572,3663.7,3663.5,3.2078]
[1736129897923,0.24572,3663.6,3663.5,3.2078]
[1736129898119,3.2078,3663.8,3663.0,3.2078]
[1736129898325,0.24575,3663.1,3663.0,3.2078]
[1736129898929,0.24579,3662.7,3662.3,3.2078]
[1736129899128,3.2078,3663.1,3662.3,3.2078]
[1736129899329,0.24576,3663.0,3662.4,0.2458]
[1736129899528,0.24578,3662.8,3662.3,3.2078]
[1736129899731,2.57745235,3663.3,3662.3,3.2078]
[1736129900129,0.24578,3662.7,3662.3,3.2078]
[1736129900328,2.57745235,3663.3,3662.3,3.2078]
[1736129900530,0.24577,3662.8,3662.7,3.2078]
[1736129901133,0.24579,3662.5,3662.2,3.2078]
[1736129902035,1.202,3663.1,3662.2,3.2078]
[1736129902425,0.24579,3662.5,3662.2,3.2078]
[1736129903026,0.24579,3662.6,3662.2,3.2078]
[1736129903232,1.202,3663.1,3662.2,3.2078]
[1736129903525,0.2458,3662.4,3662.2,3.2078]
[1736129903735,1.202,3663.1,3662.2,3.2078]
[1736129904035,0.2458,3662.4,3662.2,3.2078]
[1736129904231,2.57745235,3662.9,3662.2,3.2078]
[1736129904535,2.57745235,3662.9,3661.8,3.2078]
[1736129904536,0.24581,3662.2,3661.8,3.2078]
[1736129904734,3.5266,3662.8,3661.8,3.2078]
[1736129904935,0.24579,3662.6,3662.2,3.2078]
[1736129905129,3.5266,3662.8,3662.2,3.2078]
[1736129905534,0.2458,3662.3,3662.2,3.2078]
[1736129905740,0.24583,3662.0,3661.8,3.2078]
[1736129907942,2.57745235,3662.5,3661.8,3.2078]
[1736129908242,3.5266,3662.8,3661.8,3.2078]
[1736129908544,0.2458,3662.5,3662.0,0.24582]
[1736129908737,0.2458,3662.5,3662.3,3.2078]
[1736129909039,0.24579,3662.5,3662.3,3.2078]
[1736129909238,0.24578,3662.7,3662.3,3.2078]
[1736129909433,3.5266,3662.8,3662.3,3.2078]
[1736129910033,0.24578,3662.7,3662.3,3.2078]
[1736129910242,3.5266,3662.8,3662.3,3.2078]
[1736129910429,0.2458,3662.4,3662.3,3.2078]
[1736129910631,0.24579,3662.6,3662.3,3.2078]
[1736129910832,0.24578,3662.7,3662.3,3.2078]
[1736129911140,3.77237,3662.8,3662.3,3.2078]
[1736129911439,3.5266,3662.8,3662.3,3.2078]
[1736129911633,3.77237,3662.8,3662.3,3.2078]
[1736129911837,0.24578,3662.7,3662.3,3.2078]
[1736129912038,3.5266,3662.8,3662.3,3.2078]
[1736129912340,0.24579,3662.6,3662.3,3.2078]
[1736129913042,3.5266,3662.8,3662.3,3.2078]
[1736129913236,0.2458,3662.5,3662.3,3.2078]
[1736129914343,3.5266,3662.8,3662.3,3.2078]
[1736129914638,3.2078,3663.1,3662.3,3.4536]
[1736129914842,7.80893837,3663.4,3662.7,3.2078]
[1736129915041,4.17333837,3663.4,3663.0,0.24575]
[1736129915240,4.17333837,3663.4,3663.1,0.24574]
[1736129915743,4.17333837,3663.4,3663.2,0.24574]
[1736129916239,1.202,3663.8,3663.1,3.2078]
[1736129916438,0.24572,3663.6,3663.1,3.2078]
[1736129917343,1.202,3663.8,3663.1,3.2078]
[1736129917344,0.24572,3663.5,3663.1,3.2078]
[1736129917542,1.202,3663.8,3663.1,3.2078]
[1736129917741,1.202,3663.8,3663.3,0.24574]
[1736129917940,1.202,3663.8,3663.1,3.2078]
[1736129918144,1.8435,3664.0,3663.1,3.2078]
[1736129918439,0.24571,3663.7,3663.1,3.2078]
[1736129918637,0.24571,3663.7,3663.2,0.24574]
[1736129919046,1.7512,3664.3,3663.5,3.2078]
[1736129919243,1.8104,3664.8,3664.0,3.2078]
[1736129919641,0.24567,3664.3,3664.0,3.2078]
[1736129919847,1.8104,3664.8,3664.0,3.2078]
[1736129920045,0.24568,3664.1,3664.0,3.2078]
[1736129920349,0.24568,3664.2,3664.0,3.2078]
[1736129920848,0.24568,3664.1,3664.0,3.2078]
[1736129921544,0.24568,3664.3,3664.0,3.2078]
[1736129921852,0.24568,3664.2,3664.0,3.2078]
[1736129922347,2.57745235,3664.5,3663.6,3.2078]
[1736129922746,0.24568,3664.2,3663.7,0.24571]
[1736129922948,0.24569,3664.1,3663.6,3.45352]
[1736129923247,2.57745235,3664.5,3663.6,3.2078]
[1736129923442,4.41225235,3664.5,3663.6,3.2078]
[1736129923754,0.24569,3664.1,3663.6,3.2078]
[1736129924045,0.24569,3664.1,3664.0,3.2078]
[1736129925048,1.8104,3664.8,3664.0,3.2078]
[1736129925546,0.24566,3664.5,3664.0,3.45349]
[1736129925752,3.2078,3664.6,3664.0,3.2078]
[1736129925947,0.24567,3664.3,3664.0,3.2078]
[1736129926458,0.24567,3664.4,3664.0,3.2078]
[1736129926653,1.8104,3664.8,3664.0,3.2078]
[1736129926848,0.24564,3664.8,3664.4,3.2078]
[1736129927043,1.82,3665.2,3664.4,3.2078]
[1736129927250,1.82,3665.2,3664.6,0.24565]
[1736129928055,2.08042,3665.1,3664.6,0.24565]
[1736129928254,2.08042,3665.1,3664.4,3.2078]
[1736129928255,1.8348,3665.1,3664.4,3.2078]
[1736129928652,0.24565,3664.6,3664.4,3.2078]
[1736129929348,0.24565,3664.7,3664.4,3.2078]
[1736129931050,0.24563,3665.0,3664.4,3.45346]
[1736129931356,0.24563,3665.0,3664.5,0.24565]
[1736129931551,0.24563,3665.0,3664.4,3.45346]
[1736129932059,0.24563,3664.9,3664.4,3.45346]
[1736129932448,2.06562,3665.2,3664.8,3.2078]
[1736129933651,0.24562,3665.1,3664.8,3.2078]
[1736129934053,2.06561,3665.2,3664.8,3.2078]
[1736129934456,0.24562,3665.1,3664.8,3.2078]
[1736129935657,1.82,3665.2,3664.8,3.2078]
[1736129935953,0.24563,3665.0,3664.8,3.2078]
[1736129936654,1.82,3665.2,3664.8,3.2078]
[1736129936955,2.06561,3665.2,3664.8,3.2078]
[1736129937252,0.24562,3665.1,3664.8,3.2078]
[1736129937454,1.82,3665.2,3664.8,3.2078]
[1736129937455,2.06561,3665.2,3664.8,3.2078]
[1736129938148,0.24562,3665.1,3664.8,3.2078]
[1736129938346,1.8316,3665.4,3664.9,0.24563]
[1736129938551,0.2456,3665.4,3664.9,0.24563]
[1736129938752,0.24559,3665.6,3665.0,0.24562]
[1736129938955,5.38734047,3665.7,3664.8,3.2078]
[1736129939154,0.24559,3665.5,3664.9,0.24563]
[1736129939460,2.17954047,3665.1,3664.8,3.2078]
[1736129939959,0.24565,3664.6,3664.3,3.2078]
[1736129940259,0.24564,3664.8,3664.3,3.45347]
[1736129940559,0.24564,3664.7,3664.3,3.2078]
[1736129940755,0.24566,3664.4,3664.3,3.2078]
[1736129940961,3.4724,3664.6,3664.3,3.2078]
[1736129941161,3.71805,3664.6,3664.3,3.2078]
[1736129941356,3.4724,3664.6,3664.3,3.2078]
[1736129941552,0.24566,3664.4,3664.3,3.2078]
[1736129941761,0.24566,3664.5,3664.3,3.2078]
[1736129942254,3.4724,3664.6,3664.3,3.2078]
[1736129942454,0.24566,3664.5,3664.3,3.2078]
[1736129942659,2.17954047,3664.8,3664.3,3.2078]
[1736129942859,0.24566,3664.5,3664.3,3.2078]
[1736129944258,2.17954047,3664.4,3663.5,3.2078]
[1736129944461,2.17954047,3664.2,3663.1,3.2078]
[1736129944764,0.2457,3663.8,3663.4,0.24572]
[1736129945263,0.24572,3663.7,3663.1,3.2078]
[1736129946167,2.17954047,3664.2,3663.1,3.2078]
[1736129946365,3.2078,3664.3,3663.8,0.2457]
[1736129946366,0.24568,3664.1,3663.8,0.2457]
[1736129946664,0.24568,3664.1,3663.9,3.2078]
[1736129947855,0.24568,3664.1,3663.9,4.9651]
[1736129948052,0.24567,3664.3,3664.0,0.24569]
[1736129948257,0.24568,3664.2,3664.0,0.24569]
[1736129948453,5.1751,3664.9,3663.9,4.9651]
[1736129948659,3.2078,3665.1,3664.4,2.17954047]
[1736129948864,3.19831034,3665.3,3665.2,0.24561]
[1736129949061,3.19831034,3665.3,3665.2,3.45341]
[1736129949466,0.41599938,3665.3,3665.2,8.72701]
[1736129949658,1.39363837,3665.5,3665.4,0.2456]
[1736129950064,2.17954047,3666.3,3665.3,0.2456]
[1736129950258,0.24556,3666.0,3665.6,3.45338]
[1736129950463,0.24556,3666.1,3665.7,0.24557]
[1736129950865,2.17954047,3666.3,3665.6,3.2078]
[1736129951163,0.24554,3666.3,3666.0,3.2078]
[1736129951861,0.24555,3666.2,3666.0,3.2078]
[1736129952062,0.24555,3666.1,3666.0,3.2078]
[1736129952261,0.24553,3666.4,3666.0,3.2078]
[1736129952466,3.406,3666.5,3666.0,3.2078]
[1736129952467,0.24554,3666.3,3666.0,3.2078]
[1736129952666,0.24555,3666.2,3666.0,3.2078]
[1736129952872,0.24555,3666.1,3665.7,0.24557]
[1736129953067,0.24557,3665.8,3665.6,3.2078]
[1736129953374,0.24553,3666.4,3665.8,0.24557]
[1736129953569,0.24554,3666.3,3666.0,3.2078]
[1736129953768,0.24554,3666.4,3666.0,3.45336]
[1736129953969,0.24555,3666.2,3666.0,3.2078]
[1736129954275,3.406,3666.5,3666.0,3.2078]
[1736129954471,4.9848,3666.8,3666.0,3.2078]
[1736129954675,2.57267979,3666.7,3666.0,3.2078]
[1736129954873,0.24553,3666.4,3666.0,3.2078]
[1736129955175,1.8092,3666.6,3666.0,3.2078]
[1736129955574,5.2303,3666.8,3666.1,0.24555]
[1736129955877,2.0225,3666.8,3666.2,0.24554]
[1736129956070,1.777,3666.8,3666.4,3.45332]
[1736129956479,1.777,3666.8,3666.4,3.2078]
[1736129956972,3.45322,3668.1,3667.4,0.24546]
[1736129957168,1.7006,3667.8,3667.3,3.2078]
[1736129957374,1.7006,3667.8,3667.4,0.24546]
[1736129957581,1.7006,3667.8,3667.5,0.24545]
[1736129957881,1.7006,3667.8,3667.6,0.24544]
[1736129958083,5.32969285,3668.3,3667.3,3.2078]
[1736129958084,5.32969285,3668.3,3668.2,0.24541]
[1736129958271,5.32969285,3668.3,3668.2,3.45321]
[1736129958579,5.32969285,3668.3,3668.2,3.2078]
[1736129958781,5.32969285,3668.3,3667.7,3.2078]
[1736129958975,2.57267979,3668.1,3667.7,3.2078]
[1736129959276,0.24542,3668.1,3667.7,3.2078]
[1736129959474,1.7791,3668.2,3667.8,0.24543]
[1736129959777,1.2,3668.8,3667.7,3.2078]
[1736129959973,1.44537,3668.8,3668.2,0.24541]
[1736129960176,1.44537,3668.8,3667.7,3.2078]
[1736129960177,1.2,3668.8,3667.7,3.2078]
[1736129960581,3.0144,3668.8,3667.7,3.2078]
[1736129960778,0.2454,3668.4,3667.7,3.2078]
[1736129960982,1.7992,3668.3,3667.7,3.2078]
[1736129961481,1.8422,3668.9,3667.8,0.24543]
[1736129961482,0.24538,3668.7,3667.8,0.24543]
[1736129961777,0.24538,3668.7,3668.1,3.2078]
[1736129961983,5.05,3668.9,3668.1,3.2078]
[1736129963177,0.24537,3668.8,3668.1,3.2078]
[1736129963384,0.24541,3668.3,3668.1,3.2078]
[1736129963685,5.78047979,3668.5,3667.2,0.24548]
[1736129963883,5.78047979,3668.5,3667.1,3.2078]
[1736129963884,2.57267979,3667.9,3667.1,3.2078]
[1736129964083,0.24542,3668.1,3667.4,0.24546]
[1736129964279,2.57267979,3668.3,3667.4,0.24546]
[1736129964485,0.24543,3667.9,3667.3,0.24547]
[1736129964677,3.2078,3668.1,3667.2,0.24547]
[1736129964881,0.24544,3667.8,3667.2,0.24547]
[1736129965279,3.2078,3668.1,3667.1,3.2078]
[1736129965481,3.5388,3668.2,3668.0,0.24542]
[1736129965781,0.24538,3668.6,3668.1,0.24541]
[1736129966279,0.24537,3668.8,3668.3,0.2454]
[1736129966478,1.44536,3668.9,3668.3,0.2454]
[1736129966678,3.4643,3669.0,3667.9,3.2078]
[1736129966886,3.4643,3669.0,3668.3,0.2454]
[1736129966887,0.24536,3668.9,3668.3,0.2454]
[1736129967079,3.4643,3669.0,3668.3,0.2454]
[1736129967080,1.8492,3668.8,3668.3,0.2454]
[1736129967381,1.8492,3668.8,3668.1,0.24541]
[1736129967583,0.24539,3668.6,3668.0,0.24542]
[1736129967787,1.8492,3668.8,3667.9,3.2078]
[1736129967980,0.24538,3668.7,3668.1,0.24541]
[1736129968181,1.8492,3668.8,3668.1,0.24541]
[1736129968383,0.24538,3668.6,3668.1,0.24541]
[1736129968586,1.8492,3668.8,3667.9,3.2078]
[1736129968979,2.09457,3668.8,3667.9,3.2078]
[1736129969179,1.8492,3668.8,3667.9,3.2078]
[1736129969381,0.24539,3668.6,3668.1,0.24541]
[1736129969580,0.24539,3668.5,3668.1,0.24541]
[1736129969776,1.8492,3668.8,3667.9,3.2078]
[1736129969988,0.24538,3668.7,3667.9,3.2078]
[1736129970287,2.09457,3668.8,3668.3,0.2454]
[1736129970485,2.09457,3668.8,3667.9,3.2078]
[1736129970486,1.8492,3668.8,3667.9,3.2078]
[1736129970688,1.8492,3668.8,3668.3,0.2454]
[1736129970689,0.24538,3668.7,3668.3,0.2454]
[1736129970888,1.8492,3668.8,3667.9,44.0078]
[1736129971187,2.57267979,3668.1,3667.3,0.24547]
[1736129971388,2.57267979,3668.1,3667.3,3.2078]
[1736129971691,1.7201,3668.0,3667.3,3.2078]
[1736129971890,0.24545,3667.6,3667.3,3.2078]
[1736129972585,0.24546,3667.4,3667.3,3.2078]
[1736129972882,0.24548,3667.2,3666.6,40.8]
[1736129973092,2.57267979,3667.7,3666.8,3.2078]
[1736129973593,0.24545,3667.7,3667.3,0.24547]
[1736129973790,1.6848,3667.9,3667.2,3.2078]
[1736129973992,1.6848,3667.9,3667.7,0.24544]
[1736129974292,1.6848,3667.9,3667.6,3.45325]
[1736129974594,1.6848,3667.9,3667.7,0.24544]
[1736129975691,1.6848,3667.9,3667.6,3.2078]
[1736129975895,1.8191,3668.6,3667.6,3.2078]
[1736129976195,1.8407,3668.9,3668.4,3.2078]
[1736129976495,1.8407,3668.9,3668.6,0.24538]
[1736129977198,0.24534,3669.2,3668.8,0.24537]
[1736129977388,3.2078,3669.3,3668.4,3.2078]
[1736129977584,0.24537,3668.9,3668.5,0.24539]
[1736129978291,2.57267979,3669.0,3668.4,3.2078]
[1736129978495,3.2078,3669.3,3668.4,3.2078]
[1736129978794,3.2078,3669.3,3668.0,1.198]
[1736129978795,0.24532,3669.6,3669.0,0.24535]
[1736129979092,0.24535,3669.1,3668.8,3.2078]
[1736129979293,0.24535,3669.1,3668.1,1.8862]
[1736129979294,0.24536,3668.9,3668.5,0.24539]
[1736129979496,0.24536,3668.9,3668.4,3.2078]
[1736129979697,0.24536,3669.1,3668.6,0.24538]
[1736129980096,2.57267979,3669.4,3668.6,0.24538]
[1736129980097,0.24534,3669.3,3668.6,0.24538]
[1736129980297,2.57267979,3669.4,3668.4,3.2078]
[1736129980298,0.24535,3669.1,3668.4,3.2078]
[1736129980597,0.24534,3669.3,3668.9,0.24536]
[1736129980795,0.24532,3669.6,3669.2,0.24534]
[1736129980994,1.8407,3669.7,3669.2,0.24534]
[1736129981197,2.08601,3669.7,3669.2,0.24534]
[1736129981401,1.8407,3669.7,3669.4,0.24532]
[1736129981594,1.8407,3669.7,3669.4,0.24533]
[1736129981904,1.8407,3669.7,3669.4,3.2078]
[1736129982201,2.08601,3669.7,3668.9,3.2078]
[1736129982397,2.08601,3669.7,3669.0,0.24536]
[1736129982589,1.8407,3669.7,3669.3,3.2078]
[1736129983199,0.24532,3669.6,3669.3,3.2078]
[1736129984900,2.08601,3669.7,3669.3,3.2078]
[1736129985092,1.8407,3669.7,3669.6,0.24532]
[1736129985295,1.8407,3669.7,3669.5,0.24532]
[1736129985493,2.06719,3670.0,3669.5,0.24532]
[1736129985693,3.2078,3670.1,3669.3,3.2078]
[1736129986101,0.24527,3670.3,3669.9,0.24529]
[1736129986297,0.24528,3670.1,3669.7,3.2078]
[1736129986699,0.2453,3669.8,3669.7,3.2078]
[1736129986899,0.24529,3670.0,3669.3,3.45313]
[1736129987094,3.2078,3670.1,3669.3,3.45313]
[1736129987290,3.2078,3670.1,3669.7,0.24531]
[1736129987498,0.24528,3670.2,3669.7,3.4531]
[1736129987900,0.24529,3670.1,3669.7,3.4531]
[1736129988103,4.9354,3670.5,3669.7,3.2078]
[1736129988296,1.7276,3670.5,3670.1,3.2078]
[1736129988499,1.7276,3670.5,3670.3,0.24526]
[1736129988692,1.7276,3670.5,3670.1,3.2078]
[1736129988896,3.2078,3671.3,3670.4,0.24526]
[1736129989093,0.24522,3671.1,3670.8,0.24523]
[1736129989306,0.24522,3671.1,3669.8,41.68605]
[1736129989307,3.2078,3671.8,3670.9,3.2078]
[1736129989502,4.918,3671.8,3671.1,0.24521]
[1736129989807,4.918,3671.8,3670.9,3.2078]
[1736129990001,0.24519,3671.5,3670.9,3.2078]
[1736129990198,4.918,3671.8,3670.7,1.8171]
[1736129990199,0.24518,3671.7,3671.3,3.453]
[1736129990400,1.7102,3671.8,3671.3,3.2078]
[1736129990699,0.24518,3671.7,3671.3,3.2078]
[1736129991902,1.7102,3671.8,3671.3,3.2078]
[1736129992101,0.24518,3671.6,3671.3,3.2078]
[1736129992505,1.7102,3671.8,3671.3,3.2078]
[1736129992706,0.2452,3671.4,3671.3,3.2078]
[1736129994000,0.2452,3671.4,3670.7,1.8171]
[1736129994001,4.918,3671.8,3670.7,3.2078]
[1736129994203,6.39347979,3671.4,3670.3,3.2078]
[1736129994400,5.78047979,3671.4,3670.3,3.2078]
[1736129994706,1.198,3671.7,3670.7,3.2078]
[1736129995405,7.49067979,3671.8,3671.0,0.24522]
[1736129995406,0.24519,3671.5,3671.0,0.24522]
[1736129995606,7.49067979,3671.8,3670.7,3.2078]
[1736129995910,0.24521,3671.2,3670.7,3.45304]
[1736129996102,4.28287979,3671.8,3670.8,0.24523]
[1736129996103,0.2452,3671.3,3670.8,0.24523]
[1736129996303,0.24519,3671.5,3671.0,0.24522]
[1736129996502,1.7102,3671.8,3671.1,3.2078]
[1736129996705,1.7102,3671.8,3671.1,3.45301]
[1736129996905,0.24519,3671.6,3671.1,3.45301]
[1736129997406,1.7102,3671.8,3671.2,0.2452]
[1736129997803,1.95537,3671.8,3671.3,0.2452]
[1736129998107,1.7102,3671.8,3671.3,0.2452]
[1736129998507,1.95537,3671.8,3671.3,0.2452]
[1736129998811,0.24518,3671.7,3671.3,0.2452]
[1736129999104,0.24519,3671.5,3671.1,3.45301]
[1736129999311,1.7102,3671.8,3671.1,3.2078]
[1736129999511,1.7102,3671.8,3671.2,0.24521]
[1736129999704,0.24518,3671.6,3671.2,0.24521]
[1736130000307,1.7102,3671.8,3671.1,3.2078]
[1736130000615,0.24519,3671.6,3671.1,3.2078]
[1736130000811,0.24519,3671.5,3671.1,3.45301]
[1736130001207,1.7102,3671.8,3671.2,0.2452]
[1736130001208,0.24518,3671.6,3671.2,0.2452]
[1736130001910,0.24519,3671.5,3671.1,3.45301]
[1736130002510,0.24518,3671.6,3671.2,0.24521]
[1736130003110,0.24518,3671.6,3671.1,3.2078]
[1736130003111,0.2452,3671.4,3671.1,3.45301]
[1736130003413,0.24519,3671.5,3671.1,3.45301]
[1736130004006,1.7102,3671.8,3671.1,3.2078]
[1736130004208,0.24519,3671.5,3671.1,3.45301]
[1736130004414,0.24519,3671.5,3671.2,0.24521]
[1736130004616,1.7102,3671.8,3671.2,0.24521]
[1736130004808,0.24519,3671.6,3671.2,0.24521]
[1736130005010,1.7102,3671.8,3671.1,3.2078]
[1736130005317,0.24521,3671.2,3671.1,3.2078]
[1736130005815,0.24524,3670.7,3670.3,3.45306]
[1736130006009,0.61296,3671.6,3670.3,3.45306]
[1736130006010,1.7102,3671.8,3671.7,0.24518]
[1736130006316,3.45294,3672.2,3671.8,0.24517]
[1736130006510,3.45294,3672.2,3671.3,3.2078]
[1736130006511,0.24517,3671.9,3671.4,0.2452]
[1736130006707,0.24517,3671.8,3671.4,0.2452]
[1736130006907,3.2078,3672.2,3671.3,3.2078]
[1736130007116,0.24515,3672.1,3671.4,0.24519]
[1736130007412,3.2078,3672.2,3671.3,3.2078]
[1736130007617,0.24515,3672.1,3671.8,0.24516]
[1736130007914,1.833,3672.5,3671.9,2.57267979]
[1736130008216,0.24507,3673.4,3672.4,3.2078]
[1736130008418,0.24507,3673.4,3672.3,2.57267979]
[1736130008419,0.24506,3673.5,3673.1,0.24508]
[1736130008609,0.24506,3673.4,3673.0,0.24508]
[1736130008913,0.24506,3673.5,3673.1,0.24508]
[1736130009217,2.12005071,3673.8,3673.7,0.24504]
[1736130009813,3.568,3674.4,3673.6,3.2078]
[1736130010014,1.7794,3674.4,3674.1,0.24502]
[1736130010312,1.7794,3674.4,3673.6,3.2078]
[1736130010508,3.2078,3674.8,3674.0,3.2078]
[1736130010713,3.89945071,3675.3,3674.4,3.2078]
[1736130010909,3.89945071,3675.3,3674.6,0.24498]
[1736130011115,3.89945071,3675.3,3674.4,3.2078]
[1736130011311,3.89945071,3675.3,3674.3,3.76867979]
[1736130011312,1.7794,3675.3,3674.8,3.45277]
[1736130011516,1.7794,3675.3,3674.8,3.2078]
[1736130011720,1.7794,3675.3,3674.4,3.2078]
[1736130011909,1.7794,3675.3,3674.4,44.0078]
[1736130012219,0.24491,3675.7,3675.2,3.2078]
[1736130012419,0.24492,3675.6,3675.2,3.2078]
[1736130012618,0.24491,3675.7,3675.2,3.2078]
[1736130012821,0.24492,3675.5,3675.2,3.2078]
[1736130013024,0.24492,3675.6,3675.2,3.2078]
[1736130013416,1.7886,3675.8,3675.2,3.2078]
[1736130013616,0.24493,3675.4,3675.2,3.2078]
[1736130013914,1.7886,3675.8,3674.8,3.2078]
[1736130014117,1.7745,3676.6,3674.5,1.196]
[1736130014118,3.2078,3676.9,3675.7,3.2078]
[1736130014417,3.2078,3677.8,3676.7,3.2078]
[1736130014614,3.2078,3677.8,3677.1,5.78047979]
[1736130014821,1.8084,3678.0,3677.1,3.2078]
[1736130015025,4.9823,3678.2,3677.1,3.2078]
[1736130015210,4.23272605,3678.5,3678.0,3.2078]
[1736130015715,3.2078,3679.1,3678.0,3.2078]
[1736130015909,0.24474,3678.3,3678.0,3.2078]
[1736130016313,3.2078,3678.7,3678.0,5.78047979]
[1736130016514,1.7582,3679.5,3678.4,5.78047979]
[1736130016717,0.24467,3679.4,3678.8,3.2078]
[1736130016917,1.7582,3679.5,3678.8,3.2078]
[1736130017116,0.24464,3679.7,3678.8,5.78047979]
[1736130017515,0.24463,3680.0,3679.2,3.2078]
[1736130017721,3.2078,3680.2,3679.6,3.2078]
[1736130018121,3.2078,3680.2,3679.2,5.78047979]
[1736130018122,0.24464,3679.9,3679.2,5.78047979]
[1736130018318,3.2078,3680.2,3679.2,3.2078]
[1736130018515,5.78047979,3679.8,3678.4,5.78047979]
[1736130018720,0.24471,3678.7,3678.4,3.2078]
[1736130019022,3.2078,3679.4,3678.4,3.2078]
[1736130019225,3.2078,3679.4,3678.4,5.78047979]
[1736130019417,3.2078,3680.2,3679.2,5.78047979]
[1736130019722,0.2446,3680.3,3679.6,5.78047979]
[1736130019921,0.2446,3680.5,3679.6,5.78047979]
[1736130020117,1.7582,3680.6,3680.0,5.78047979]